[Event "87th Tata Steel Challengers 2025"]
[Site "Wijk aan Zee"]
[Date "2025.02.02"]
[Round "13.1"]
[White "Pijpers, Arthur"]
[Black "Deshmukh, Divya"]
[Result "1/2-1/2"]
[Annotator "ChessBase"]
[ECO "C11"]
[WhiteElo "2474"]
[BlackElo "2490"]
[PlyCount "46"]
[EventDate "2025.01.13"]
[EventType "tourn"]
[EventCountry "NED"]
[SourceTitle "playchess.com"]
[Source "ChessBase"]
[SourceQuality "1"]
[TimeControl "40/6000+30:20/3000+30:900+30"]

1. e4 {[%emt 0:00:03]} e6 {[%emt 0:00:04]} 2. d4 {[%emt 0:00:07]} d5 {[%emt 0:00:02]} 3. Nc3 {[%emt 0:00:04]} Nf6 {[%emt 0:00:03]} 4. e5 {[%emt 0:00:05]} Nfd7 {[%emt 0:00:03]} 5. f4 {[%emt 0:00:05]} c5 {[%emt 0:00:02]} 6. Nf3 {[%emt 0:00:05]} Nc6 {[%emt 0:00:03]} 7. Be3 {[%emt 0:00:06]} Be7 {[%emt 0:00:03]} 8. dxc5 {[%emt 0:06:29]} O-O {[%emt 0:01:23]} 9. a3 {[%emt 0:00:07]} a6 {[%emt 0:18:09]} 10. Na4 {[%emt 0:31:48]} f6 {[%emt 0:06:07]} 11. exf6 {[%emt 0:00:05]} Nxf6 {[%emt 0:00:14]} 12. Be2 {[%emt 0:02:22]} Ng4 {[%emt 0:08:25]} 13. Bd2 {[%emt 0:04:33]} e5 {[%emt 0:10:47]} 14. fxe5 {[%emt 0:00:06]} Ncxe5 {[%emt 0:20:06]} 15. O-O {[%emt 0:11:01]} Qc7 {[%emt 0:10:04]} 16. Nxe5 {[%emt 0:06:48]} Bxc5+ {[%emt 0:02:05]} 17. Nxc5 {[%emt 0:00:18]} Qxc5+ {[%emt 0:00:19]} 18. Kh1 {[%emt 0:00:04]} Rxf1+ {[%emt 0:00:44]} 19. Qxf1 {[%emt 0:00:06]} Nf2+ {[%emt 0:00:01]} 20. Kg1 {[%emt 0:00:05]} Nh3+ {[%emt 0:00:15]} 21. Kh1 {[%emt 0:00:04]} Nf2+ {[%emt 0:00:02]} 22. Kg1 {[%emt 0:00:04]} Nh3+ {[%emt 0:00:04]} 23. Kh1 {[%emt 0:00:03]} Nf2+ {[%emt 0:00:07]} 1/2-1/2

[Event "87th Tata Steel Challengers 2025"]
[Site "Wijk aan Zee"]
[Date "2025.02.02"]
[Round "13.2"]
[White "Svane, Frederik"]
[Black "Gurel, Ediz"]
[Result "1/2-1/2"]
[Annotator "ChessBase"]
[ECO "C42"]
[WhiteElo "2664"]
[BlackElo "2624"]
[PlyCount "115"]
[EventDate "2025.01.13"]
[EventType "tourn"]
[EventCountry "NED"]
[SourceTitle "playchess.com"]
[Source "ChessBase"]
[SourceQuality "1"]
[TimeControl "40/6000+30:20/3000+30:900+30"]

1. e4 {[%emt 0:00:06]} e5 {[%emt 0:00:09]} 2. Nf3 {[%emt 0:00:14]} Nf6 {[%emt 0:00:06]} 3. Nxe5 {[%emt 0:00:50]} d6 {[%emt 0:00:07]} 4. Nf3 {[%emt 0:00:04]} Nxe4 {[%emt 0:00:05]} 5. d3 {[%emt 0:00:06]} Nf6 {[%emt 0:00:12]} 6. d4 {[%emt 0:00:06]} g6 {[%emt 0:00:24]} 7. Bb5+ {[%emt 0:00:06]} c6 {[%emt 0:00:06]} 8. Bd3 {[%emt 0:00:06]} Bg7 {[%emt 0:01:32]} 9. Qe2+ {[%emt 0:00:07]} Qe7 {[%emt 0:00:07]} 10. Qxe7+ {[%emt 0:00:06]} Kxe7 {[%emt 0:00:02]} 11. O-O {[%emt 0:00:08]} Na6 {[%emt 0:00:43]} 12. c3 {[%emt 0:11:28]} Nc7 {[%emt 0:05:44]} 13. Re1+ {[%emt 0:02:20]} Be6 {[%emt 0:02:33]} 14. Ng5 {[%emt 0:00:44]} Kd7 {[%emt 0:02:02]} 15. Nd2 {[%emt 0:10:16]} Rae8 {[%emt 0:04:25]} 16. Nxe6 {[%emt 0:04:16]} Nxe6 {[%emt 0:01:35]} 17. Nf3 {[%emt 0:01:29]} h5 {[%emt 0:02:17]} 18. h4 {[%emt 0:02:10]} Bh6 {[%emt 0:02:57]} 19. Bxh6 {[%emt 0:03:01]} Rxh6 {[%emt 0:00:04]} 20. g3 {[%emt 0:05:03]} Rhh8 {[%emt 0:00:43]} 21. c4 {[%emt 0:03:45]} Re7 {[%emt 0:07:47]} 22. b4 {[%emt 0:08:00]} Ra8 {[%emt 0:10:48]} 23. Rab1 {[%emt 0:05:38]} Rae8 {[%emt 0:07:45]} 24. a4 {[%emt 0:01:42]} Kc8 {[%emt 0:06:26]} 25. Red1 {[%emt 0:09:08]} Kb8 {[%emt 0:03:40]} 26. a5 {[%emt 0:10:44]} Rd8 {[%emt 0:06:54]} 27. Re1 {[%emt 0:12:07]} Rde8 {[%emt 0:00:51]} 28. Rec1 {[%emt 0:00:09]} Rd8 {[%emt 0:02:47]} 29. Re1 {[%emt 0:00:15]} Rde8 {[%emt 0:00:54]} 30. Rec1 {[%emt 0:00:04]} Rd8 {[%emt 0:00:25]} 31. Kg2 {[%emt 0:04:31]} d5 {[%emt 0:06:31]} 32. a6 {[%emt 0:06:19]} dxc4 {[%emt 0:03:25]} 33. Rxc4 {[%emt 0:00:02]} Rd6 {[%emt 0:03:27]} 34. axb7 {[%emt 0:03:39]} Kxb7 {[%emt 0:00:25]} 35. Bf1 {[%emt 0:02:29]} Nc7 {[%emt 0:04:35]} 36. Rc5 {[%emt 0:01:43]} Ne6 {[%emt 0:03:19]} 37. Re5 {[%emt 0:02:15]} Ng4 {[%emt 0:04:29]} 38. Re2 {[%emt 0:01:40]} Rc7 {[%emt 0:11:48]} 39. Rd2 {[%emt 0:01:06]} Rcd7 {[%emt 0:00:38]} 40. Rbd1 {[%emt 0:00:56]} Nc7 {[%emt 0:03:41]} 41. Ra1 {[%emt 0:14:58]} Nb5 {[%emt 0:01:03]} 42. Rda2 {[%emt 0:00:05]} Kb8 {[%emt 0:00:38]} 43. Rc1 {[%emt 0:01:06]} Nxd4 {[%emt 0:03:18]} 44. Nxd4 {[%emt 0:01:36]} Rxd4 {[%emt 0:00:01]} 45. Rxc6 {[%emt 0:00:08]} Ne5 {[%emt 0:02:44]} 46. Rc3 {[%emt 0:02:44]} Rxb4 {[%emt 0:03:23]} 47. Ba6 {[%emt 0:00:20]} Rc7 {[%emt 0:00:56]} 48. Rac2 {[%emt 0:00:28]} Rxc3 {[%emt 0:00:04]} 49. Rxc3 {[%emt 0:00:03]} Ka8 {[%emt 0:00:07]} 50. Rc8+ {[%emt 0:01:02]} Rb8 {[%emt 0:00:01]} 51. Rc7 {[%emt 0:00:06]} Rb6 {[%emt 0:00:13]} 52. Rc8+ {[%emt 0:00:22]} Rb8 {[%emt 0:00:04]} 53. Rc5 {[%emt 0:02:43]} Ng4 {[%emt 0:02:21]} 54. Rc7 {[%emt 0:03:57]} Rb6 {[%emt 0:00:05]} 55. Rc8+ {[%emt 0:00:06]} Rb8 {[%emt 0:00:03]} 56. Rc7 {[%emt 0:00:10]} Rb6 {[%emt 0:00:05]} 57. Rc8+ {[%emt 0:00:06]} Rb8 {[%emt 0:00:04]} 58. Rc7 {[%emt 0:00:06]} 1/2-1/2

[Event "87th Tata Steel Challengers 2025"]
[Site "Wijk aan Zee"]
[Date "2025.02.02"]
[Round "13.3"]
[White "Vaishali, Rameshbabu"]
[Black "L'Ami, Erwin"]
[Result "1-0"]
[Annotator "TA"]
[ECO "B52"]
[WhiteElo "2476"]
[BlackElo "2614"]
[PlyCount "119"]
[EventDate "2025.01.13"]
[EventType "tourn"]
[EventCountry "NED"]
[SourceTitle "playchess.com"]
[Source "ChessBase"]
[SourceQuality "1"]
[TimeControl "40/6000+30:20/3000+30:900+30"]

{[%evp 9,119,4,14,0,0,0,7,5,8,14,13,0,45,40,55,0,28,10,17,12,18,-6,10,7,39,39,128,134,111,123,105,89,61,66,94,94,94,94,122,83,122,129,145,173,254,254,254,254,250,245,241,201,189,125,199,191,191,102,113,91,135,127,243,236,219,79,471,369,369,369,369,369,349,296,275,84,87,93,634,503,1421,1436,1521,1214,1058,1058,1660,1263,2445,2397,1678,2287,2806,2617,29978,29979,29979,29980,29980,29981,29981,29982,29983,29982,29985,29986,29987,29988,29988,29989,29989,29990]} 1. e4 {[%emt 0:00:12]} c5 {[%emt 0:00:13]} 2. Nf3 {[%emt 0:00:06]} d6 {[%emt 0:00:11]} 3. Bb5+ {[%emt 0:00:15]} Bd7 {[%emt 0:00:21]} 4. c4 {[%emt 0:00:23]} Nc6 {[%emt 0:00:58]} 5. Nc3 {[%emt 0:00:21]} e5 {[%emt 0:00:46]} 6. d3 {[%emt 0:01:25] B52: Sicilian: Moscow Variation with 3...Bd7.} Nge7 {[%emt 0:01:53]} 7. a3 {[%emt 0:01:25]} Ng6 {[%emt 0:11:03]} 8. Nd5 {[%emt 0:07:11] The position is equal.} Be7 {[%emt 0:02:34]} 9. b4 {[%emt 0:05:26]} O-O {[%emt 0:02:18]} 10. h4 $146 {[%emt 0:16:05][%cal Bh2h4,Bh4h5][%mdl 32]} (10. bxc5 dxc5 11. Bxc6 {½-½ Nevednichy,V (2447)-Georgiev,K (2294) SRB-chT 2nd League 2023 (11.1)}) 10... Re8 {[%emt 0:15:50]} 11. h5 {[%emt 0:12:06]} Nf8 {[%emt 0:00:32]} 12. Bb2 {[%emt 0:13:11]} ({White should play} 12. h6 $14) 12... b6 {[%emt 0:20:08]} 13. Ba4 {[%emt 0:07:14]} Ne6 {[%emt 0:02:22]} 14. O-O {[%emt 0:22:37] A sharp opening} h6 {[%emt 0:07:27]} 15. Nh2 {[%emt 0:05:09][%cal Bf3h2,Bh2g4,Bg4e3][%mdl 32]} Rf8 {[%emt 0:04:11]} 16. Ng4 {[%emt 0:02:13]} Rc8 {[%emt 0:06:20]} 17. Nge3 {[%emt 0:01:01]} Nc7 {[%emt 0:12:21]} (17... Nf4 $14) 18. Bxc6 $1 $16 {[%emt 0:06:06]} Bxc6 {[%emt 0:00:07]} 19. Nxe7+ {[%emt 0:01:54]} Qxe7 {[%emt 0:00:15]} 20. f4 {[%emt 0:00:03] Prevents Qg5.} Bd7 {[%emt 0:01:41]} 21. f5 {[%emt 0:02:50][%cal Of5f6]} f6 {[%emt 0:01:34]} 22. b5 $1 {[%emt 0:00:57]} a6 {[%emt 0:00:52]} 23. a4 {[%emt 0:00:03]} Ra8 {[%emt 0:00:26]} 24. Bc3 {[%emt 0:00:45]} Rfb8 {[%emt 0:02:14]} 25. a5 {[%emt 0:03:01]} Qf7 {[%emt 0:06:58]} 26. axb6 {[%emt 0:00:32][%csl Ob6] White has a strong passed pawn} Rxb6 {[%emt 0:00:05]} (26... Ne8 $142) 27. Ba5 $18 {[%emt 0:00:05]} Rb7 {[%emt 0:00:05]} 28. b6 {[%emt 0:01:20]} (28. Bxc7 Rxc7 29. Rf2 (29. Rxa6 Rxa6 30. bxa6 Ra7 $18) (29. bxa6 Rca7 $16) 29... Rca7 $18) 28... Ne8 {[%emt 0:00:05]} 29. Qg4 {[%emt 0:00:28]} Bc6 {[%emt 0:00:57]} 30. Rf3 {[%emt 0:00:26]} Rab8 {[%emt 0:00:14]} 31. Kh2 {[%emt 0:00:32]} (31. Rf2 $1 $18) 31... d5 {[%emt 0:04:00]} (31... Rxb6 $16 32. Bxb6 Rxb6) 32. cxd5 {[%emt 0:00:33]} Bb5 {[%emt 0:00:09]} 33. Rc1 {[%emt 0:00:30]} (33. Nc4 $18) 33... Bxd3 $16 {[%emt 0:00:32]} 34. Rxc5 {[%emt 0:00:30]} Nd6 {[%emt 0:00:33]} 35. Rc6 {[%emt 0:00:31]} (35. Rc7 Rxc7 36. bxc7 Rb5 $11) 35... Nxe4 {[%emt 0:01:10]} (35... Rd8 $16 {was worth a try.} 36. Rf2 (36. Rc7 Rxc7 37. bxc7 Rc8 $16) 36... Nxe4) 36. d6 $18 {[%emt 0:00:25]} Rd7 {[%emt 0:02:41]} 37. Rc7 {[%emt 0:00:21]} (37. Nd1 $1 $18 {and the rest is easy.} Qd5 (37... Rxd6 $2 38. Rc7 $18) 38. Rc7 Qxd6 39. Nb2) 37... Kh8 $2 {[%emt 0:01:03][%mdl 8192] [#]} (37... Nxd6 $2 38. Rxd7 (38. Nd5 Bb5 $15) 38... Qxd7 39. Nd5 $18) (37... Ng5 $16 {is tougher.}) 38. Nd5 $1 {[%emt 0:00:44][%mdl 512]} Qxd5 {[%emt 0:01:18]} 39. Rxd7 {[%emt 0:00:04][%csl Gd7][%cal Rg4g7]} Ng5 {[%emt 0:00:03] [#]} 40. Rxd3 {[%emt 0:00:57][%mdl 512]} Qxd3 {[%emt 0:00:14]} 41. b7 {[%emt 0:05:03]} Qd5 {[%emt 0:14:57][%cal Oe5e4]} 42. Qa4 {[%emt 0:16:00]} (42. Qb4 $18 {Hoping for Rd8+.} Nf7 43. Qd2 Qxd2 44. Bxd2 Nxd6 45. Rxd6 Rxb7 46. Rxa6) 42... e4 $16 {[%emt 0:07:00] [#]} 43. Be1 $1 {[%emt 0:08:33] Some like it hot} Qxf5 $2 {[%emt 0:21:28][%mdl 8192]} (43... Rxb7 44. Rxb7 Qxb7 45. Qe8+ Kh7 46. d7 $18) (43... Qe5+ $16 44. Kg1 (44. Bg3 Qe8 $11) 44... Qc5+ 45. Bf2 Qc1+ (45... e3 46. Be1 $16) 46. Kh2 Kh7) 44. Re7 $18 {[%emt 0:05:32] Active counter play!} Kh7 {[%emt 0:01:35]} (44... Qf4+ $142 45. Bg3 Qd2 46. Rxe4 (46. Qxa6 Nf3+ 47. Kh3 Ng5+ 48. Kh2 Nf3+ 49. Kh3 Ng5+ 50. Kh2 $11) (46. Re8+ Kh7 $11) 46... Nf3+ 47. Kh1 Qc1+ 48. Be1 Ne5) 45. Qd7 {[%emt 0:06:44]} (45. Qxa6 Qg4 $16) 45... Qxd7 {[%emt 0:02:25]} 46. Rxd7 {[%emt 0:00:03][%mdl 4096] Endgame KRB-KRN. Black is a pawn up.} Ne6 {[%emt 0:00:34]} 47. Bf2 {[%emt 0:01:18]} a5 {[%emt 0:04:02]} 48. Ba7 {[%emt 0:00:37]} e3 {[%emt 0:00:30][%cal Be4e3,Be3e2][%mdl 32]} 49. Kg3 {[%emt 0:06:05]} (49. Bxb8 e2 $11) 49... a4 {[%emt 0:02:05]} 50. Bxb8 {[%emt 0:00:40]} a3 {[%emt 0:01:39] [#]} 51. Rc7 $1 {[%emt 0:00:44] White threatens Ba7 and mate.} Nxc7 {[%emt 0:01:41]} (51... a2 52. Rc1) 52. dxc7 {[%emt 0:00:18] KB-KP. White mates.} e2 {[%emt 0:00:47]} 53. Kf2 {[%emt 0:00:11]} (53. c8=B $2 e1=Q+ (53... e1=B+ 54. Kf3 $18) 54. Kh3 Qe4 $19) 53... a2 {[%emt 0:00:07]} 54. c8=Q {[%emt 0:00:05]} ({Inferior is} 54. c8=B a1=Q (54... a1=B $2 {is the wrong capture.} 55. Kxe2 Bd4 56. Kd3 $18) 55. Kxe2 Qh1 $11) 54... a1=Q {[%emt 0:00:28]} 55. Kxe2 {[%emt 0:00:58]} Qb2+ {[%emt 0:01:18]} 56. Kf1 {[%emt 0:00:24]} Qb5+ {[%emt 0:00:11]} 57. Kg1 {[%emt 0:00:14]} Qb6+ {[%emt 0:00:23]} 58. Kh2 {[%emt 0:00:18]} Qb5 {[%emt 0:00:21]} 59. Bg3 {[%emt 0:00:09]} Qxh5+ {[%emt 0:00:06]} 60. Qh3 {[%emt 0:00:04] Weighted Error Value: White=0.16 (very precise) /Black=0.57  Loses game:     	---       	Black=2      Missed win:     	White=1     	---        Mistake:       	White=4     	Black=5      Inaccurate:     	White=1     	Black=6      OK:         	White=12    	Black=17     Best:        	White=3     	Black=3      Strong:       	White=3     	---        Brilliant:      	White=1     	---} 1-0

[Event "87th Tata Steel Challengers 2025"]
[Site "Wijk aan Zee"]
[Date "2025.02.02"]
[Round "13.4"]
[White "Bok, Benjamin"]
[Black "Nguyen, Thai Dai Van"]
[Result "0-1"]
[Annotator "TA"]
[ECO "E36"]
[WhiteElo "2583"]
[BlackElo "2668"]
[PlyCount "110"]
[EventDate "2025.01.13"]
[EventType "tourn"]
[EventCountry "NED"]
[SourceTitle "playchess.com"]
[Source "ChessBase"]
[SourceQuality "1"]
[TimeControl "40/6000+30:20/3000+30:900+30"]

{[%evp 11,110,-11,35,6,32,33,39,25,38,33,28,8,25,8,31,20,18,0,21,0,0,-7,0,-14,6,2,40,30,41,16,33,39,52,47,47,22,43,29,75,60,84,91,84,0,7,0,0,0,0,0,0,0,42,47,52,0,0,0,0,-36,-34,-34,-34,-33,-22,-31,-26,-27,-29,-38,-34,-272,-244,-404,-404,-401,-401,-398,-395,-410,-264,-410,-410,-410,-410,-410,-410,-336,0,-336,-258,-6070,-5505,-29977,-29974,-29974,-2548,-29985,-29986,-29986,-29987]} 1. d4 {[%emt 0:00:19]} Nf6 {[%emt 0:00:13]} 2. c4 {[%emt 0:00:07]} e6 {[%emt 0:00:09]} 3. Nc3 {[%emt 0:00:05]} Bb4 {[%emt 0:00:17]} 4. Qc2 {[%emt 0:00:06]} d5 {[%emt 0:00:19]} 5. a3 {[%emt 0:00:09]} Bxc3+ {[%emt 0:00:28]} 6. Qxc3 {[%emt 0:00:05]} Nc6 {[%emt 0:01:25] 6...0-0 is the modern continuation.} (6... O-O $11) 7. Bg5 {[%emt 0:34:43] E36: Nimzo-Indian: Classical: 4...d5 5 a3.} dxc4 {[%emt 0:00:09]} (7... Ne4 $5 8. Bxd8 Nxc3 $11) 8. e3 {[%emt 0:05:49][%cal Og1f3]} Nd5 $146 {[%emt 0:00:06][%csl LRc3,LRg5][%cal Bf6d5,Bd5c3,Bc3d5][%mdl 32]} (8... Qd5 9. Bxf6 gxf6 10. Qxc4 Qxc4 11. Bxc4 Bd7 12. Ne2 Ne7 13. f3 Rc8 14. b4 Nf5 {½-½ Beliavsky,A (2641)-Parligras,M (2561) EU-ch 9th Plovdiv 2008 (2)}) 9. Bxd8 {[%emt 0:00:13] White is slightly better.} Nxc3 {[%emt 0:00:05]} 10. Bxc7 {[%emt 0:09:09]} Nd5 {[%emt 0:00:09]} 11. Bg3 {[%emt 0:03:49]} Na5 {[%emt 0:28:07]} 12. Ne2 {[%emt 0:00:56]} b5 {[%emt 0:07:02]} 13. Nc3 {[%emt 0:05:57]} a6 {[%emt 0:07:01]} 14. Be2 {[%emt 0:04:11]} Bb7 {[%emt 0:01:31]} 15. Nxd5 {[%emt 0:04:29]} Bxd5 {[%emt 0:10:09]} 16. f3 {[%emt 0:00:09]} Nb3 {[%emt 0:00:27]} 17. Rb1 {[%emt 0:05:41]} Rc8 {[%emt 0:01:41]} 18. Bd1 {[%emt 0:03:49]} Kd7 {[%emt 0:14:00]} 19. e4 {[%emt 0:08:29]} Bb7 {[%emt 0:00:02]} 20. Bc2 {[%emt 0:00:12]} (20. Bxb3 cxb3 21. O-O Rc4 $17) 20... a5 {[%emt 0:04:03]} (20... Nxd4 $2 21. Rd1 $18) 21. Kf2 {[%emt 0:01:26]} Rhf8 {[%emt 0:14:24]} (21... Nxd4 $2 22. Rhd1 $18) 22. Ke3 {[%emt 0:03:21]} (22. Bxb3 cxb3 23. Rbc1 f5 $19) 22... f5 {[%emt 0:00:01]} 23. Rhd1 {[%emt 0:06:48]} g5 {[%emt 0:04:53] [#]} 24. Be1 {[%emt 0:00:46]} fxe4 {[%emt 0:00:07]} (24... Rf7 $11 {was preferable.}) 25. fxe4 $16 {[%emt 0:00:49]} Rf4 {[%emt 0:01:45]} 26. Bg3 {[%emt 0:07:58]} Rff8 {[%emt 0:09:42]} 27. Bxb3 {[%emt 0:02:01]} (27. Rh1 $16) 27... cxb3 $11 {[%emt 0:00:02]} 28. Rf1 {[%emt 0:00:17]} Rxf1 {[%emt 0:01:20]} 29. Rxf1 {[%emt 0:00:01][%mdl 4096] Endgame KRB-KRB} Ke7 {[%emt 0:00:00] Repels Rf7+} 30. Be1 {[%emt 0:01:46]} b4 {[%emt 0:00:49]} 31. axb4 {[%emt 0:00:35]} Rc1 {[%emt 0:02:55] [#]} 32. bxa5 {[%emt 0:00:53]} Ke8 $1 {[%emt 0:00:05]} 33. Kd2 {[%emt 0:01:19]} (33. Rg1 $14) 33... Rc2+ {[%emt 0:00:21]} 34. Ke3 {[%emt 0:00:04] Strongly threatening Rf6.} Rxb2 {[%emt 0:00:30][%cal Ob2b1]} 35. Bb4 {[%emt 0:00:46]} Rxg2 {[%emt 0:02:06]} 36. Rf8+ {[%emt 0:00:40]} Kd7 {[%emt 0:00:01][%cal Ob3b2]} 37. Rf7+ {[%emt 0:00:26]} Kc8 {[%emt 0:00:08]} 38. Rf8+ {[%emt 0:00:35]} (38. Rxh7 $2 b2 39. Rh8+ Kc7 40. Rh7+ Kb8 $19 (40... Kc6 41. d5+ exd5 42. exd5+ Kxd5 43. Rd7+ Kc4 44. Rc7+ $19)) 38... Kc7 {[%emt 0:00:02][%cal Ob3b2]} 39. Rf7+ {[%emt 0:00:27]} Kb8 {[%emt 0:00:05]} 40. Bd6+ {[%emt 0:00:33]} (40. Rxh7 $2 b2 41. a6 Bc8 $19 (41... b1=B 42. axb7) (41... b1=Q 42. Bd6+ Ka7 43. Rxb7+ $17) (41... Re2+ $2 42. Kxe2 Bxa6+ 43. Kf3 $19)) 40... Ka7 {[%emt 0:02:25]} 41. Bc5+ $2 {[%emt 0:32:52] White is on the road to losing.} ({White should try} 41. Rf1 $15) 41... Ka6 $19 {[%emt 0:04:01]} 42. Re7 $2 {[%emt 0:04:52]} (42. Ba3 {was necessary.}) 42... b2 {[%emt 0:14:11]} (42... Rxh2 $2 43. Rxe6+ Kxa5 44. d5 $19) 43. Rxe6+ {[%emt 0:00:05]} Kxa5 {[%emt 0:00:02]} 44. Rb6 {[%emt 0:00:06]} Ba6 {[%emt 0:01:05][%cal Oa6b5] aiming for ...Bb5!.} (44... Rxh2 $2 45. Rxb7 Rh6 46. d5 (46. Rxb2 Rh3+ 47. Kd2 Rh2+ 48. Kc3 Rxb2 $18) 46... Rh3+ 47. Kd4 $18) 45. Rb8 {[%emt 0:04:01]} Re2+ {[%emt 0:01:19]} (45... Rxh2 46. d5 $19) 46. Kf3 {[%emt 0:00:02]} Bd3 {[%emt 0:09:38]} (46... Rxh2 47. Bb4+ Ka4 48. Bc3 Rh3+ 49. Kf2 Rxc3 50. Rxb2) 47. h3 {[%emt 0:01:20]} h5 {[%emt 0:01:35]} (47... b1=R 48. Rxb1 Bxe4+ 49. Kxe2 $11) 48. e5 {[%emt 0:09:55]} Rh2 {[%emt 0:10:00]} (48... b1=R 49. Rxb1 g4+ 50. hxg4 hxg4+ (50... Bxb1 51. Kxe2 hxg4 52. e6 $16) 51. Kxg4 Bxb1 52. Kf3) (48... b1=B $2 49. Be7 $19) (48... b1=N 49. Bb4+ Ka4 50. Rb6 $19) 49. Kg3 {[%emt 0:00:59]} Re2 {[%emt 0:00:48] ( -> ...Be4)} (49... b1=Q 50. Rxb1 $15) 50. Kf3 {[%emt 0:00:10]} Ka4 {[%emt 0:03:07]} (50... b1=R 51. Rxb1 g4+ 52. hxg4 hxg4+ (52... Bxb1 53. Kxe2 hxg4 54. e6 $16) 53. Kxg4 Bxb1 54. Kf3) (50... b1=B $2 51. Bb4+ Ka4 52. Be7 $19) (50... b1=N 51. Rxb1 g4+ 52. hxg4 hxg4+ 53. Kxg4 Bxb1 54. Kf3 $19) 51. e6 $2 {[%emt 0:01:07]} (51. Rb4+ Ka5 (51... Ka3 $2 52. e6 $17) 52. e6) 51... Bb5 {[%emt 0:02:04]} ({Stronger than} 51... b1=B 52. e7 g4+ 53. hxg4 hxg4+ 54. Kxg4 $11) (51... b1=N 52. Rb4+ Ka5 53. Rxb1 g4+ 54. hxg4 hxg4+ (54... Rxe6 55. Rb3 $14) 55. Kxg4 Bxb1 56. d5) 52. Ra8+ {[%emt 0:00:31]} Kb3 {[%emt 0:00:01]} 53. Rb8 {[%emt 0:00:29]} g4+ {[%emt 0:00:31]} (53... b1=B $2 54. Rxb5+ Kc3 55. Rxb1 $18 (55. Kxe2 Bd3+ 56. Ke3 Bxb5 $18)) 54. hxg4 {[%emt 0:00:01]} hxg4+ {[%emt 0:00:05]} (54... b1=B $2 55. Rxb5+ Kc4 56. Rb4+ (56. Rxb1 Rxe6 57. gxh5 Rf6+ 58. Ke4 Rh6 $18) (56. Kxe2 Kxb5 57. gxh5 Bf5 $18) (56. gxh5 Bd3 $18) 56... Kd3 57. Rb3+ (57. Rxb1 hxg4+ 58. Kxg4 Rxe6 $18) (57. gxh5 Ba2 $18) 57... Kd2 58. Rb2+ (58. Rxb1 hxg4+ 59. Kxg4 Rxe6 $18) (58. gxh5 Be4+ 59. Kg3 Bc2 $18) 58... Kd3 59. Rxe2 $18) 55. Kxg4 {[%emt 0:00:35]} Kc4 {[%emt 0:00:03] Weighted Error Value: White=0.50/Black=0.20 (precise)   Loses game:     	White=1     	---        Mistake:       	White=4     	Black=1      Inaccurate:     	White=4     	Black=3      OK:         	White=15    	Black=15     Best:        	White=5     	Black=7      Strong:       	---       	Black=1} (55... b1=B $2 {perishes.} 56. Rxb5+ Kc4 57. Rxb1 $18) 0-1